bitfinex-derivatives/quotes_ETHF0:USTF0_20250621
["timestamp","ask_amount","ask_price","bid_price","bid_amount"]
[1750482688327,2.55369,2422.7,2422.5,1.23822]
[1750482692341,1.3313,2422.6,2422.5,1.23822]
[1750482693844,1.23812,2422.8,2422.4,3.8783]
[1750482694235,2.56942,2422.8,2422.4,3.8783]
[1750482694638,2.56942,2422.8,2422.6,1.23818]
[1750482696645,2.56942,2422.8,2422.4,3.8783]
[1750482696844,2.56942,2422.8,2422.6,1.23818]
[1750482697037,1.333,2422.7,2422.6,1.23818]
[1750482697438,3.71922484,2422.7,2422.6,1.23818]
[1750482697641,4.95737484,2422.7,2422.6,1.23818]
[1750482697945,3.71922484,2422.7,2422.6,1.23818]
[1750482698338,4.95737484,2422.7,2422.6,1.23818]
[1750482699244,3.71922484,2422.7,2422.6,1.23818]
[1750482699846,4.95737484,2422.7,2422.6,1.23818]
[1750482702146,4.95737484,2422.7,2422.5,1.23822]
[1750482702346,1.3819,2422.6,2422.3,0.649]
[1750482702647,2.38622484,2422.5,2422.4,1.2383]
[1750482703042,3.76812484,2422.5,2422.4,1.2383]
[1750482707845,5.00637484,2422.5,2422.4,1.2383]
[1750482708249,5.00637484,2422.5,2422.3,1.23833]
[1750482708446,7.00522484,2422.4,2422.3,1.23833]
[1750482721557,8.24353484,2422.4,2422.3,1.23833]
[1750482723258,1.23837,2422.3,2422.2,1.23838]
[1750482723857,8.24356484,2422.4,2422.2,1.23838]
[1750482724561,8.24356484,2422.4,2422.3,0.6966]
[1750482724957,8.24356484,2422.4,2422.3,1.93496]
[1750482725764,5.03576484,2422.4,2422.3,1.93496]
[1750482726863,5.03576484,2422.4,2422.3,0.6966]
[1750482728864,4.31998075,2422.4,2422.3,0.6966]
[1750482729862,3.08164075,2422.4,2422.3,1.93496]
[1750482730062,4.31995075,2422.4,2422.3,1.93496]
[1750482732065,3.08164075,2422.4,2422.3,1.93496]
[1750482732265,4.31995075,2422.4,2422.3,1.93496]
[1750482732666,4.31995075,2422.4,2422.3,0.6966]
[1750482734162,1.23851,2422.0,2421.9,7.66348641]
[1750482734466,3.3408815,2422.0,2421.6,4.12592456]
[1750482734659,1.67044075,2421.7,2421.6,1.91721]
[1750482734958,2.90910075,2421.7,2421.6,1.00731709]
[1750482735554,2.90910075,2421.7,2421.6,2.24602709]
[1750482736363,2.90910075,2421.7,2421.6,1.00731709]
[1750482736974,3.62626618,2421.7,2421.6,1.00731709]
[1750482739272,2.38760618,2421.7,2421.6,1.00731709]
[1750482740273,3.62626618,2421.7,2421.6,1.00731709]
[1750482740573,2.38760618,2421.7,2421.6,1.00731709]
[1750482740773,2.38760618,2421.7,2421.6,2.24602709]
[1750482741374,2.38760618,2421.7,2421.6,1.00731709]
[1750482741876,3.62626618,2421.7,2421.6,1.00731709]
[1750482742074,2.38760618,2421.7,2421.6,2.24602709]
[1750482742269,3.62626618,2421.7,2421.6,1.00731709]
[1750482742777,2.38760618,2421.7,2421.6,2.24602709]
[1750482743174,3.62626618,2421.7,2421.6,2.24602709]
[1750482743475,3.62626618,2421.7,2421.6,1.00731709]
[1750482743877,4.94556618,2421.7,2421.6,1.00731709]
[1750482744772,4.94556618,2421.7,2421.6,2.24602709]
[1750482744972,3.70690618,2421.7,2421.6,2.24602709]
[1750482747382,2.38760618,2421.7,2421.6,2.24602709]
[1750482758791,1.67132498,2421.7,2421.6,2.24602709]
[1750482772598,1.67132498,2421.7,2421.2,4.42134]
[1750482772599,1.23917,2420.7,2420.4,5.78243672]
[1750482772899,3.2078,2420.5,2420.2,0.6839]
[1750482773098,3.2078,2420.5,2420.2,3.59463498]
[1750482773299,2.6889,2420.4,2420.3,1.3214]
[1750482774402,3.92826,2420.4,2420.0,0.6799]
[1750482774595,1.67132498,2420.2,2420.1,0.6839]
[1750482774795,2.39031741,2420.3,2420.1,0.6839]
[1750482775192,3.62972741,2420.3,2420.1,0.6839]
[1750482775391,2.39031741,2420.3,2420.1,0.6839]
[1750482775598,3.62969741,2420.3,2420.1,0.6839]
[1750482775798,2.39031741,2420.3,2420.1,0.6839]
[1750482776105,3.62969741,2420.3,2420.1,0.6839]
[1750482776996,4.66259741,2420.3,2420.1,0.6839]
[1750482779100,3.42321741,2420.3,2420.1,0.6839]
[1750482779497,1.0329,2420.3,2420.1,2.0321]
[1750482780695,3.42321741,2420.3,2420.1,2.0321]
[1750482781111,4.66260741,2420.3,2420.1,2.0321]
[1750482781310,4.66260741,2420.3,2420.1,0.6839]
[1750482786612,4.66260741,2420.3,2420.1,1.92336]
[1750482789410,3.42321741,2420.3,2420.1,0.6839]
[1750482789722,4.66262741,2420.3,2420.1,1.92337]
[1750482790814,3.42321741,2420.3,2420.1,1.92337]
[1750482791014,3.42321741,2420.3,2420.2,1.23943]
[1750482792019,4.66262741,2420.3,2420.1,0.6839]
[1750482792216,4.66262741,2420.3,2420.1,1.92338]
[1750482792716,3.42321741,2420.3,2420.1,0.6839]
[1750482792916,4.66261741,2420.3,2420.1,0.6839]
[1750482793714,4.66261741,2420.3,2420.1,1.92338]
[1750482794316,2.3053,2420.2,2420.1,1.92338]
[1750482799824,2.3053,2420.2,2420.1,3.26738]
[1750482801519,2.3053,2420.2,2419.4,8.94984185]
[1750482801714,3.2078,2420.0,2419.9,1.23956]
[1750482803222,3.2078,2420.0,2419.9,2.63156]
[1750482803423,4.2408,2420.0,2419.9,2.63156]
[1750482803729,1.033,2420.0,2419.9,2.63156]
[1750482814028,1.033,2420.0,2419.9,7.71656]
[1750482822937,1e-08,2420.0,2419.9,7.71656]
[1750482823133,2.3053,2420.2,2420.1,1.23948]
[1750482823941,2.3053,2420.2,2420.1,1.89228]
[1750482840853,1.3965,2420.6,2420.5,1.23928]
[1750482841054,2.62539008,2420.6,2420.5,1.23928]
[1750482841246,1.22889008,2420.6,2420.5,1.23928]
[1750482841446,3.08091741,2420.8,2420.7,1.23917]
[1750482841651,4.30958068,2420.8,2420.6,1.23919]
[1750482841859,1.22866327,2420.7,2420.6,1.23919]
[1750482842556,5.75016327,2420.7,2420.6,1.23919]
[1750482843858,5.75016327,2420.7,2420.6,1.23923]
[1750482857976,4.43646327,2420.7,2420.6,1.23923]
[1750482860274,3.2078,2420.7,2420.6,1.23923]
[1750482865679,3.2078,2420.7,2420.6,2.52143]
[1750482865874,2.28,2420.9,2420.8,1.23912]
[1750482866073,3.26492919,2420.9,2420.8,1.23912]
[1750482867984,3.26503244,2420.9,2420.8,1.23912]
[1750482870192,3.26503244,2420.9,2420.8,1.43680221]
[1750482870393,3.26503244,2420.9,2420.8,1.23912]
[1750482872492,3.26503244,2420.9,2420.8,1.4397899]
[1750482873994,3.26503244,2420.9,2420.8,1.23912]
[1750482874596,2.0375,2420.9,2420.8,2.09404322]
[1750482878799,5.59811741,2421.0,2420.9,1.23907]
[1750482879000,4.4347817,2421.0,2420.9,1.23907]
[1750482879201,6.82509911,2421.0,2420.9,1.23907]
[1750482880901,6.1071286,2421.0,2420.9,1.23907]
[1750482893021,7.3461486,2421.0,2420.9,1.23907]
[1750482893221,1.23907,2420.9,2420.8,1.89318]
[1750482893414,2.4660517,2420.9,2420.8,1.89318]
[1750482893717,1.2269817,2420.9,2420.8,1.89318]
[1750482905633,1.2269817,2420.9,2420.8,3.19378]
[1750482908123,3.257,2421.0,2420.9,1.23907]
[1750482908328,3.2078,2421.4,2421.3,1.23887]
[1750482908531,4.42904041,2421.4,2421.3,1.23887]
[1750482908731,3.2078,2421.7,2421.6,1.23871]
[1750482908933,6.10150367,2421.7,2421.6,1.23871]
[1750482909128,4.42915677,2421.7,2421.6,1.23871]
[1750482909334,3.2078,2421.7,2421.6,1.23871]
[1750482909535,4.8801469,2421.7,2421.6,1.23871]
[1750482911039,3.2078,2421.7,2421.6,1.23871]
[1750482918750,2.38744202,2421.8,2421.7,1.23866]
[1750482920742,3.62605202,2421.8,2421.7,1.23866]
[1750482920946,2.38744202,2421.8,2421.7,1.23866]
[1750482921452,7.38744202,2421.8,2421.3,3.2078]
[1750482921750,2.38744202,2421.4,2421.1,1.23897]
[1750482921950,5.59524202,2421.2,2421.1,1.23897]
[1750482923550,3.2078,2421.2,2421.1,1.23897]
[1750482924056,3.2078,2421.2,2421.1,2.56877]
[1750482930154,2.38744202,2421.4,2421.3,1.23887]
[1750482930345,3.2078,2421.5,2421.4,1.23882]
[1750482952864,4.4466,2421.5,2421.3,8.35073]
[1750482953070,5.8217,2421.5,2421.3,8.35073]
[1750482953463,5.8217,2421.5,2421.4,1.23882]
[1750482953662,7.04406328,2421.5,2421.4,1.23882]
[1750482953857,5.80526328,2421.5,2421.4,1.23882]
[1750482954468,7.04403328,2421.5,2421.4,1.23882]
[1750482955062,5.80526328,2421.5,2421.4,1.23882]
[1750482957869,4.43016328,2421.5,2421.4,1.23882]
[1750482960774,5.66893328,2421.5,2421.4,1.23882]
[1750482960972,5.73286328,2421.5,2421.4,1.23882]
[1750482961973,4.43016328,2421.5,2421.4,1.23882]
[1750482962178,2.186,2421.6,2421.5,1.23877]
[1750482963871,2.186,2421.6,2421.5,3.62621202]
[1750482964067,3.2078,2421.8,2421.7,1.23866]
[1750482964669,3.2078,2421.8,2421.7,2.61636]
[1750482969384,2.526,2422.0,2421.9,1.23856]
[1750482969684,3.2078,2422.1,2422.0,1.23851]
[1750482969890,4.42755374,2422.1,2422.0,1.23851]
[1750482971685,3.2078,2422.1,2422.0,1.23851]
[1750482971882,4.42727185,2422.1,2422.0,1.23851]
[1750482972593,3.2078,2422.1,2422.0,1.23851]
[1750482973196,4.42678646,2422.1,2422.0,1.23851]
[1750482973389,3.2078,2422.1,2422.0,1.23851]
[1750482982898,4.87856981,2422.1,2422.0,1.23851]
[1750482986299,1.67076981,2422.1,2422.0,1.23851]
[1750482988600,2.88964383,2422.1,2422.0,1.23851]
[1750482988800,1.67076981,2422.1,2422.0,1.23851]
[1750482989390,2.89000524,2422.1,2422.0,1.23851]
[1750483002708,1.21923543,2422.1,2422.0,1.23851]
[1750483008513,6.11698981,2422.2,2422.1,1.23846]
[1750483009812,6.11698981,2422.2,2422.0,1.23848]
[1750483010314,7.33264093,2422.2,2422.0,1.23848]
[1750483011114,1.21565112,2422.1,2422.0,1.23848]
[1750483011914,6.11698981,2422.2,2422.0,1.23848]
[1750483012113,6.11698981,2422.2,2422.1,1.23846]
[1750483012616,4.87856981,2422.2,2422.1,1.23846]
[1750483013019,6.0942175,2422.2,2422.1,1.23846]
[1750483014521,4.42344769,2422.2,2422.1,1.23846]
[1750483014820,3.2078,2422.2,2422.1,1.23846]
[1750483020823,2.3334,2422.3,2422.2,1.23841]
[1750483021021,2.3334,2422.3,2422.2,9.52627183]
[1750483021323,2.47675543,2422.6,2422.5,1.23825]
[1750483021525,2.47675543,2422.6,2422.5,2.90901981]
[1750483022821,2.47675543,2422.6,2422.5,3.62344146]
[1750483023621,5.8839,2422.8,2422.7,1.23815]
[1750483025130,7.12205,2422.8,2422.7,1.23815]
[1750483025428,5.75655,2422.8,2422.6,1.23817]
[1750483025728,3.69579146,2422.7,2422.6,1.23817]
[1750483031429,6.90359146,2422.7,2422.6,1.23817]
[1750483035643,4.5184,2422.7,2422.6,1.23817]
[1750483042550,5.75655,2422.7,2422.6,1.23817]
[1750483042848,7.42661543,2422.7,2422.6,1.23817]
[1750483043848,6.18846543,2422.7,2422.6,1.23817]
[1750483044549,3.2078,2422.7,2422.6,1.23817]
[1750483049354,4.41745277,2422.7,2422.6,1.23817]
[1750483052065,4.41745277,2422.7,2422.6,2.60037]
[1750483052465,3.2078,2422.7,2422.6,2.60037]
[1750483052860,3.2078,2422.7,2422.6,4.27043543]
[1750483054266,2.754,2422.8,2422.7,1.23815]
[1750483054467,3.96344972,2422.8,2422.7,1.91245]
[1750483054667,3.96344972,2422.8,2422.7,2.55785]
[1750483059164,5.20154972,2422.8,2422.7,2.55785]
[1750483059772,3.96344972,2422.8,2422.7,10.59191543]
[1750483059973,1.23782,2423.4,2423.2,1.23787]
[1750483060165,1.23774,2423.5,2423.3,2.34306543]
[1750483060365,1.23779,2423.4,2423.3,2.34306543]
[1750483060563,3.2078,2423.6,2423.5,1.23774]
[1750483060869,3.2078,2423.6,2423.4,2.90784543]
[1750483061068,4.44551,2423.6,2423.4,2.90784543]
[1750483061271,4.44551,2423.6,2423.4,1.67006543]
[1750483061677,1.23774,2423.5,2423.4,1.67006543]
[1750483062478,1.23774,2423.5,2423.3,3.58086543]
[1750483062975,1.23774,2423.5,2423.3,1.9108]
[1750483063476,1.23777,2423.5,2423.3,1.91084]
[1750483069585,1.30624599,2423.5,2423.3,1.91084]
[1750483071782,1.23779,2423.4,2423.3,1.91084]
[1750483072382,1.30625599,2423.5,2423.3,1.91084]
[1750483072980,1.23779,2423.4,2423.3,1.91084]
[1750483073983,0.06847599,2423.5,2423.1,1.89933]
[1750483074180,1.23787,2423.3,2423.1,2.55293]
[1750483074976,1.23787,2423.3,2423.2,1.2379]
[1750483078382,2.63073,2423.4,2423.2,1.2379]
[1750483079279,2.63073,2423.4,2423.1,3.69884233]
[1750483079582,1.23783,2423.4,2423.3,1.23785]
[1750483081181,1.23783,2423.4,2423.2,1.23787]
[1750483081572,1.23783,2423.4,2423.3,1.23785]
[1750483082685,1.23783,2423.4,2423.2,1.23786]
[1750483084777,1.23783,2423.4,2423.3,1.66879925]
[1750483085879,1.23789,2423.3,2423.2,1.66879925]
[1750483088685,1.23789,2423.3,2423.2,2.90669925]
[1750483090084,1.23783,2423.4,2423.2,2.90669925]
[1750483090385,3.2078,2423.5,2423.2,2.90669925]
[1750483090690,4.6015,2423.5,2423.2,2.90669925]
[1750483090889,1.23785,2423.3,2423.2,1.66879925]
[1750483092185,1.23785,2423.3,2423.2,2.90669925]
[1750483093289,1.23783,2423.4,2423.2,2.90669925]
[1750483093789,1.23779,2423.4,2423.3,1.23785]
[1750483094594,1.23779,2423.4,2423.2,2.90665925]
[1750483095093,1.23779,2423.4,2423.2,4.29315925]
[1750483096088,1.23782,2423.4,2423.2,4.29314925]
[1750483096491,5.45729,2423.5,2423.3,1.23783]
[1750483096791,5.45729,2423.5,2423.4,1.66879925]
[1750483096995,5.45729,2423.5,2423.4,2.32329925]
[1750483100094,5.52576599,2423.5,2423.4,2.32329925]
[1750483107104,4.51406599,2423.5,2423.4,2.32329925]
[1750483108096,1.30626599,2423.5,2423.4,2.32329925]
[1750483117802,2.48605563,2423.5,2423.4,2.32329925]
[1750483119308,1.30626599,2423.5,2423.4,2.32329925]
[1750483120217,2.48573916,2423.5,2423.4,2.32329925]
[1750483120817,1.30626599,2423.5,2423.4,2.32329925]
[1750483121120,2.48576046,2423.5,2423.4,2.32329925]
[1750483121314,2.4857713,2423.5,2423.4,2.32329925]
[1750483129427,1.30626599,2423.5,2423.4,2.32329925]
[1750483129730,2.48577583,2423.5,2423.4,2.32329925]
[1750483136036,1.2379,2423.2,2423.1,0.6614]
[1750483136334,1.23795,2423.1,2423.0,2.34519925]
[1750483142130,2.24985,2423.1,2423.0,2.34519925]
[1750483145741,1.0119,2423.1,2423.0,3.58319925]
[1750483146039,3.2078,2423.6,2423.2,1.23787]
[1750483146040,1.23779,2423.4,2423.2,1.23787]
[1750483146238,1.23779,2423.4,2423.3,0.6614]
[1750483146440,1.23779,2423.4,2423.3,2.6488]
[1750483147038,1.23777,2423.5,2423.3,3.88664]
[1750483147244,4.44552,2423.6,2423.5,1.66879925]
[1750483148137,1.23769,2423.7,2423.5,2.96629925]
[1750483148332,1.23761,2423.8,2423.6,4.88575925]
[1750483148534,1.23761,2423.8,2423.7,2.96629925]
[1750483148735,1.17831618,2423.8,2423.7,2.96629925]
[1750483149035,1.23755,2423.9,2423.7,2.96629925]
[1750483149242,1.23755,2423.9,2423.8,1.9589]
[1750483149441,2.41579877,2423.9,2423.8,1.9589]
[1750483150437,1.23755,2423.9,2423.8,1.9589]
[1750483150841,3.2078,2424.2,2423.8,5.57893412]
[1750483151041,1.2375,2424.0,2423.9,1.3805]
[1750483152235,1.2375,2424.0,2423.9,3.76296412]
[1750483157149,1.2375,2424.0,2423.9,3.02936412]
[1750483157648,1.2375,2424.0,2423.9,0.6469]
[1750483159749,1.23769,2423.6,2423.5,2.38246412]
[1750483160050,1.23769,2423.6,2423.5,8.73446412]
[1750483161145,1.23769,2423.6,2423.5,2.38246412]
[1750483161346,1.23774,2423.5,2423.4,7.6618]
[1750483162755,1.23774,2423.5,2423.4,1.3098]
[1750483162945,1.23774,2423.5,2423.4,7.6618]
[1750483170151,1.23774,2423.5,2423.4,1.3098]
[1750483170358,1.23774,2423.5,2423.1,2.63461]
[1750483170359,3.09436,2423.5,2423.1,2.38246412]
[1750483170560,3.09436,2423.5,2423.2,0.667]
[1750483170561,4.44564,2423.3,2423.2,0.667]
[1750483175853,1.23789,2423.2,2423.1,2.38246412]
[1750483176558,1.23795,2423.1,2423.0,0.6788]
[1750483179758,1.23789,2423.2,2423.0,2.38246412]
[1750483179960,1.23795,2423.1,2423.0,2.38246412]
[1750483181253,1.238,2423.0,2422.9,0.6971]
[1750483181467,4.4458,2423.0,2422.9,0.6971]
[1750483185057,1.238,2423.0,2422.9,0.6971]
[1750483185461,1.238,2423.0,2422.9,2.0826]
[1750483187366,1.238,2423.0,2422.9,0.6971]
[1750483196676,4.4458,2423.0,2422.9,0.6971]
[1750483201475,1.23815,2422.7,2422.6,2.66316294]
[1750483201681,1.23815,2422.7,2422.6,3.33036294]
[1750483203376,1.23815,2422.7,2422.6,4.67346294]
[1750483208485,1.23815,2422.7,2422.6,5.91166294]
[1750483208881,1.23815,2422.7,2422.6,3.33036294]
[1750483209192,1.23812,2422.8,2422.6,9.70236294]
[1750483209381,1.23812,2422.8,2422.6,11.00566294]
[1750483209686,1.23812,2422.8,2422.6,12.24383294]
[1750483210086,1.23815,2422.7,2422.6,12.24383294]
[1750483210883,3.2078,2423.0,2422.6,12.24383294]
[1750483211086,4.4458,2423.0,2422.9,2.38246412]
[1750483211681,1.23815,2422.7,2422.6,0.6672]
[1750483211882,4.44595,2422.7,2422.6,0.6672]
[1750483215889,4.44595,2422.7,2422.6,3.04966412]
[1750483218093,4.44595,2422.7,2422.6,4.43686412]
[1750483221301,4.44595,2422.7,2422.6,3.04966412]
[1750483225905,1.23809,2422.9,2422.6,9.42166412]
[1750483226102,1.23809,2422.9,2422.8,2.38246412]
[1750483226694,1.23809,2422.9,2422.8,0.6774]
[1750483226906,1.23809,2422.9,2422.8,3.05986412]
[1750483228407,3.2078,2423.0,2422.4,3.50960506]
[1750483228604,3.2078,2423.0,2422.7,2.38246412]
[1750483228811,1.23805,2422.9,2422.8,0.6556]
[1750483245418,3.2078,2423.1,2422.8,0.6556]
[1750483245616,3.2078,2423.1,2423.0,3.62046412]
[1750483246017,1.23791,2423.2,2423.0,3.62046412]
[1750483246422,1.23791,2423.2,2423.1,0.6715]
[1750483246620,1.23791,2423.2,2423.1,1.3507]
[1750483251929,1.23786,2423.3,2423.1,2.58865]
[1750483252328,0.06847599,2423.2,2423.1,2.58865]
[1750483253223,0.06847599,2423.2,2423.1,3.90445]
[1750483260539,0.06847599,2423.2,2423.1,2.6665]
[1750483260733,0.06847599,2423.2,2423.1,3.90445]
[1750483265542,1.30636599,2423.2,2423.1,3.90445]
[1750483266040,1.30636599,2423.2,2423.1,2.6665]
[1750483266242,1.30636599,2423.2,2423.1,1.3507]
[1750483266436,1.30636599,2423.2,2423.1,2.58865]
[1750483266639,0.06847599,2423.2,2423.1,2.58865]
[1750483267342,1.30636599,2423.2,2423.1,2.58865]
[1750483268446,0.06847599,2423.2,2423.1,2.58865]
[1750483270844,1.30636599,2423.2,2423.1,2.58865]
[1750483271544,1.30636599,2423.2,2423.1,1.3507]
[1750483272246,0.06847599,2423.2,2423.1,2.58865]
[1750483272438,1.30636599,2423.2,2423.1,1.3507]
[1750483272934,1.30636599,2423.2,2423.1,3.01964845]
[1750483274448,1.30636599,2423.2,2423.1,0.6715]
[1750483275647,1.23789,2423.2,2423.1,0.6715]
[1750483275947,1.23795,2423.1,2423.0,1.66894845]
[1750483276446,1.23793,2423.2,2423.0,1.66894845]
[1750483277246,1.23793,2423.2,2423.0,2.90692845]
[1750483280953,1.416,2423.3,2423.0,2.90692845]
[1750483281341,1.23795,2423.1,2423.0,1.66894845]
[1750483285751,4.44575,2423.1,2423.0,1.66894845]
[1750483286654,3.2078,2423.1,2423.0,2.90694845]
[1750483287255,1.23793,2423.2,2423.0,2.90694845]
[1750483290251,3.2078,2423.4,2423.0,1.66894845]
[1750483290458,3.2078,2423.4,2423.3,2.90678845]
[1750483295055,4.51395599,2423.4,2423.3,2.90678845]
[1750483295257,4.51395599,2423.4,2423.3,1.66894845]
[1750483298056,1.23773,2423.3,2423.2,2.34164845]
[1750483298359,1.23773,2423.3,2423.2,0.6727]
[1750483325275,1.30620599,2423.3,2423.2,0.6727]
[1750483328277,1.30620599,2423.3,2423.2,1.9671]
[1750483329974,1.30620599,2423.3,2423.2,0.6727]
[1750483346806,1.23773,2423.3,2423.2,0.6727]
[1750483347406,1.23773,2423.3,2423.2,1.9865]
[1750483347597,1.30620599,2423.3,2423.2,1.9865]
[1750483352797,1.30620599,2423.3,2423.2,3.22428]
[1750483353107,1.30620599,2423.3,2423.2,1.9865]
[1750483353610,3.2078,2423.7,2423.3,1.2377]
[1750483353809,4.44532,2423.7,2423.6,1.66894845]
[1750483354110,5.63900005,2423.7,2423.6,1.66894845]
[1750483354407,4.44532,2423.7,2423.6,1.66894845]
[1750483354808,1.23752,2423.7,2423.6,1.66894845]
[1750483356608,1.23752,2423.7,2423.6,1.98011523]
[1750483362109,1.23752,2423.7,2423.6,3.31031523]
[1750483364819,1.23752,2423.7,2423.6,1.98011523]
[1750483367119,1.23752,2423.7,2423.6,8.33011523]
[1750483367415,1.23752,2423.7,2423.6,9.63161523]
[1750483368721,1.23752,2423.7,2423.6,10.86918523]
[1750483368923,1.23751,2423.8,2423.6,10.86918523]
[1750483375628,1.23752,2423.7,2423.6,10.86918523]
[1750483375927,1.23752,2423.8,2423.6,10.86918523]
[1750483377728,1.23752,2423.8,2423.7,1.23752]
[1750483379228,1.23744,2423.9,2423.7,1.23752]
[1750483379428,1.23744,2423.9,2423.8,0.6552]
[1750483380025,1.23744,2423.9,2423.8,2.32414845]
[1750483386138,1.30591599,2423.9,2423.8,2.32414845]
[1750483386733,1.30591599,2423.9,2423.8,3.56161845]
[1750483387124,1.23744,2423.9,2423.8,3.56161845]
[1750483387828,1.23741,2424.0,2423.8,3.56161845]
[1750483388028,5.52744845,2424.3,2423.8,2.32414845]
[1750483388230,1.23732,2424.1,2423.8,0.6552]
[1750483388433,1.23732,2424.1,2423.9,0.6739]
[1750483388930,1.23732,2424.1,2423.9,7.0199]
[1750483389129,1.2373,2424.2,2424.0,1.23734]
[1750483389330,1.2373,2424.2,2424.1,1.66894845]
[1750483389531,1.2373,2424.2,2424.1,2.31344845]
[1750483389929,1.23725,2424.3,2424.1,2.31344845]
[1750483390230,1.3543,2424.5,2424.1,2.31344845]
[1750483390231,1.23719,2424.4,2424.2,1.23725]
[1750483390429,1.23719,2424.4,2424.3,1.66894845]
[1750483390634,2.42793575,2424.4,2424.3,1.66894845]
[1750483391132,8.77688543,2424.9,2424.3,1.66894845]
[1750483391133,3.2078,2424.9,2424.3,1.66894845]
[1750483391335,4.44471,2424.9,2424.8,1.66894845]
[1750483392243,3.2078,2424.9,2424.6,1.66894845]
[1750483392443,1.23701,2424.7,2424.6,1.66894845]
[1750483392735,3.2078,2424.9,2424.6,1.66894845]
[1750483393131,3.2078,2424.9,2424.7,0.6501]
[1750483393132,1.23696,2424.8,2424.7,0.6501]
[1750483400435,1.30543599,2424.8,2424.7,0.6501]
[1750483403244,0.06847599,2424.8,2424.7,1.88711]
[1750483403450,1.30543599,2424.8,2424.7,0.6501]
[1750483403947,1.30543599,2424.8,2424.7,3.03126362]
[1750483404952,1.30543599,2424.8,2424.7,4.26827362]
[1750483405850,0.06847599,2424.8,2424.7,4.26827362]
[1750483406153,1.30543599,2424.8,2424.7,4.26827362]
[1750483407056,0.06847599,2424.8,2424.7,4.26827362]
[1750483416944,0.06847599,2424.8,2424.7,3.55364012]
[1750483417344,3.2078,2424.9,2424.8,1.23696]
[1750483417543,2.96305757,2424.9,2424.8,9.56516]
[1750483418260,2.96305757,2424.9,2424.8,11.23169012]
[1750483418852,3.2078,2425.2,2425.1,1.23676]
[1750483419057,3.2078,2425.2,2425.1,2.90329012]
[1750483419655,3.9024,2425.5,2425.1,8.00853012]
[1750483419853,3.2078,2425.5,2425.4,2.90319012]
[1750483420056,4.38744066,2425.5,2425.4,2.90319012]
[1750483420257,3.2078,2425.5,2425.4,2.90319012]
[1750483420554,3.2078,2425.8,2425.7,1.2365]
[1750483420756,3.2078,2425.8,2425.7,2.90303012]
[1750483421254,3.2078,2425.8,2425.7,9.56242745]
[1750483421465,3.2078,2426.1,2425.9,1.23637]
[1750483422259,3.2078,2426.1,2426.0,1.23635]
[1750483423357,1.3935,2426.3,2426.1,1.23628]
[1750483423851,1.3935,2426.3,2426.0,1.23632]
[1750483424050,2.6297,2426.3,2426.0,1.23632]
[1750483427365,1.23625,2426.2,2425.9,3.61478062]
[1750483429160,1.23631,2426.1,2425.9,3.61478062]
[1750483430368,1.30475599,2426.2,2425.9,3.61478062]
[1750483430567,1.30475599,2426.2,2426.0,1.23635]
[1750483430766,1.30475599,2426.2,2425.9,3.61478062]
[1750483431367,1.2363,2426.1,2425.9,3.61478062]
[1750483431768,0.06847599,2426.2,2426.0,6.34]
[1750483431970,0.06847599,2426.2,2426.1,3.61470062]
[1750483432168,0.06847599,2426.2,2426.1,2.37840062]
[1750483432357,0.06847599,2426.2,2426.1,3.61470062]
[1750483432562,0.06847599,2426.2,2426.1,4.32320062]
[1750483435365,2.37840062,2426.7,2426.4,1.23615]
[1750483435366,1.23602,2426.7,2426.4,1.23615]
[1750483435571,1.23602,2426.7,2426.5,1.23609]
[1750483436264,4.44377,2426.8,2426.5,1.23609]
[1750483436862,4.44377,2426.8,2426.5,3.61449062]
[1750483437570,4.44377,2426.8,2426.5,2.37840062]
[1750483437771,3.19572,2426.9,2426.6,1.23604]
[1750483438069,2.52852,2426.9,2426.6,1.236]
[1750483438463,2.52852,2426.9,2426.7,0.6735]
[1750483439268,1.23584,2427.0,2426.7,3.05190062]
[1750483439468,1.23584,2427.0,2426.7,4.28787062]
[1750483439668,2.63044,2427.0,2426.7,10.62687062]
[1750483440071,2.63044,2427.0,2426.8,1.23594]
[1750483440272,4.44361,2427.1,2426.8,1.23591]
[1750483440473,4.4436,2427.1,2426.9,1.23589]
[1750483440867,3.2078,2427.4,2426.9,2.37840062]
[1750483441068,3.2078,2427.4,2427.3,3.61409062]
[1750483441270,3.2078,2427.4,2427.3,9.95209062]
[1750483441570,3.2078,2427.4,2427.3,10.26460896]
[1750483441977,3.2078,2427.4,2427.3,1.54820834]
[1750483442169,3.2078,2427.4,2427.3,7.57369]
[1750483442574,1.23554,2427.6,2427.3,8.24079]
[1750483443479,1.2356,2427.5,2427.3,8.24079]
[1750483443679,1.23557,2427.6,2427.3,7.0051]
[1750483443880,1.23557,2427.6,2427.3,8.24078]
[1750483444080,1.23559,2427.5,2427.3,8.24078]
[1750483444277,1.23559,2427.5,2427.3,7.0051]
[1750483444472,1.23564,2427.4,2427.3,0.6671]
[1750483444784,1.23564,2427.4,2427.2,6.337]
[1750483444785,1.23573,2427.3,2427.2,6.337]
[1750483446574,4.5187,2427.4,2427.1,6.399]
[1750483446774,2.58974,2427.2,2427.1,6.399]
[1750483448173,1.23584,2427.0,2426.9,0.673]
[1750483448984,1.23587,2427.0,2426.8,3.08480062]
[1750483449174,1.23589,2426.9,2426.8,3.75580062]
[1750483450581,1.23587,2427.0,2426.8,3.75580062]
[1750483451385,1.23589,2426.9,2426.8,3.75580062]
[1750483452574,1.354,2427.2,2426.8,3.75580062]
[1750483452778,1.23589,2426.9,2426.8,3.75580062]
[1750483453383,1.23589,2426.9,2426.8,1.3774]
[1750483453584,1.23589,2426.9,2426.8,0.671]
[1750483454680,1.23594,2426.8,2426.7,9.6058]
[1750483456884,4.61,2427.1,2426.7,9.6058]
[1750483456885,1.23592,2426.9,2426.7,10.84177]
[1750483457987,1.23592,2426.9,2426.8,2.37840062]
[1750483459091,1.23592,2426.9,2426.7,10.84179]
[1750483459995,1.23592,2426.9,2426.8,2.37840062]
[1750483461300,1.30439599,2426.9,2426.8,2.37840062]
[1750483461595,0.06847599,2426.9,2426.8,4.31334062]
[1750483462194,1.30436599,2426.9,2426.8,3.07740062]